bitfinex/quotes_ETHUSD_20240731
["timestamp","ask_amount","ask_price","bid_price","bid_amount"]
[1722462360440,1.06949483,3237.4,3237.0,0.37381437]
[1722462360638,3.08883,3237.5,3237.0,0.37381437]
[1722462360842,3.08901,3237.3,3236.7,3.08953]
[1722462361144,3.08909,3237.2,3236.6,3.08963]
[1722462361456,3.08909,3237.2,3235.8,0.24377055]
[1722462361457,3.35297703,3237.1,3236.2,3.08997]
[1722462361771,3.08948,3236.8,3236.2,3.09003]
[1722462361955,4.15914703,3236.7,3236.0,3.09016]
[1722462362147,3.08957,3236.7,3236.0,3.09016]
[1722462362489,3.08957,3236.7,3235.5,3.09069]
[1722462362490,3.09005,3236.2,3235.5,3.09065]
[1722462362694,3.09023,3236.0,3235.5,3.09065]
[1722462363255,3.09023,3236.0,3235.4,3.0908]
[1722462364694,3.09033,3235.9,3235.4,3.0908]
[1722462365008,3.09033,3235.9,3235.2,3.09091]
[1722462365306,3.09033,3235.9,3235.3,3.0909]
[1722462366499,3.09033,3235.9,3235.1,6.1821]
[1722462366703,3.09048,3235.8,3235.2,3.09093]
[1722462366905,3.09048,3235.8,3235.3,3.09089]
[1722462367689,3.09052,3235.7,3235.1,3.09101]
[1722462367891,3.09052,3235.7,3235.2,3.09098]
[1722462369470,3.09052,3235.7,3235.0,3.09111]
[1722462369673,3.09063,3235.6,3235.0,3.09111]
[1722462370288,3.09063,3235.6,3235.0,3.09113]
[1722462370966,3.09072,3235.5,3235.0,3.09113]
[1722462372216,3.73687528,3235.5,3235.0,3.09113]
[1722462372500,3.09072,3235.5,3235.0,3.09113]
[1722462372913,3.0908,3235.4,3234.8,3.09135]
[1722462373077,3.0908,3235.4,3234.8,4.009586]
[1722462373263,3.0908,3235.4,3234.9,3.09127]
[1722462373683,3.0908,3235.4,3234.7,6.09146]
[1722462373873,3.0911,3235.1,3234.5,3.09159]
[1722462374104,3.0911,3235.1,3234.5,3.09161]
[1722462374105,3.73725528,3235.1,3234.5,3.09161]
[1722462374411,3.73725528,3235.1,3234.5,6.1832]
[1722462374412,0.64615528,3235.0,3234.5,6.1832]
[1722462374594,3.73725528,3235.1,3234.6,3.09154]
[1722462376080,3.09126,3235.0,3234.4,3.09174]
[1722462376268,3.73725528,3235.1,3234.4,3.710094]
[1722462376269,3.09132,3234.9,3234.4,3.710094]
[1722462376471,3.09132,3234.9,3234.4,3.09174]
[1722462377319,3.09132,3234.9,3234.1,3.09199]
[1722462377320,3.09132,3234.9,3234.3,3.09184]
[1722462377923,3.09132,3234.9,3234.3,3.09179]
[1722462378273,6.18268,3234.9,3234.3,3.09179]
[1722462378473,3.09138,3234.8,3234.2,3.09192]
[1722462379084,3.09138,3234.8,3234.3,3.09185]
[1722462379292,3.09171,3234.5,3233.2,5.37739]
[1722462379494,1.32865364,3234.9,3233.6,3.09244]
[1722462379495,3.09191,3234.3,3233.6,3.09244]
[1722462379774,0.64580513,3234.6,3233.7,0.309244]
[1722462379996,3.09196,3234.2,3233.6,3.09244]
[1722462382879,3.09208,3234.1,3233.5,3.09261]
[1722462383083,3.09208,3234.1,3233.4,3.09269]
[1722462383084,3.09214,3234.0,3233.6,3.0]
[1722462383427,3.09236,3233.8,3233.3,3.09272]
[1722462383984,3.08892813,3233.8,3233.3,3.09272]
[1722462384439,3.09273,3233.4,3232.6,3.09341]
[1722462384642,3.09273,3233.4,3231.8,2.33266756]
[1722462384643,3.09291,3233.2,3232.4,6.18721]
[1722462384805,3.09304,3233.1,3232.4,3.712311]
[1722462385137,3.09324,3232.9,3232.2,3.09379]
[1722462385320,3.09266,3233.5,3231.9,3.09409]
[1722462385321,3.09356,3232.6,3231.9,3.09409]
[1722462385486,3.09365,3232.5,3231.9,3.09409]
[1722462385916,3.09365,3232.5,3231.6,3.09439]
[1722462385917,3.09367,3232.4,3231.7,3.09428]
[1722462386242,3.09379,3232.3,3231.7,3.403719]
[1722462386537,3.09379,3232.3,3231.4,5.37338]
[1722462386538,3.0939,3232.2,3231.5,3.09447]
[1722462386833,2.3688,3232.9,3230.9,5.66771871]
[1722462386834,3.09413,3232.0,3231.3,3.09466]
[1722462386988,3.09417,3231.9,3231.1,3.09482]
[1722462387189,3.09417,3231.9,3230.9,2.2788]
[1722462387190,3.09417,3231.9,3231.2,3.404302]
[1722462387498,5.46203,3232.9,3231.1,3.09491]
[1722462387499,3.09431,3231.8,3231.1,3.09491]
[1722462387720,3.09451,3231.6,3230.7,6.19049]
[1722462387903,3.09451,3231.6,3230.7,3.714279]
[1722462388093,3.09451,3231.6,3230.7,3.09523]
[1722462388294,3.09459,3231.5,3230.9,3.0951]
[1722462388915,3.09467,3231.4,3230.7,6.19044]
[1722462389084,3.09459,3231.5,3230.8,3.0952]
[1722462389285,3.0947,3231.4,3230.7,3.09521]
[1722462389514,3.404049,3231.5,3230.7,3.09521]
[1722462389710,3.404049,3231.5,3230.6,3.09536]
[1722462389711,0.309459,3231.5,3230.6,3.09536]
[1722462390036,3.09462,3231.5,3230.6,3.09536]
[1722462390200,3.09486,3231.2,3230.6,3.09536]
[1722462390402,3.09505,3231.0,3230.2,3.09573]
[1722462390616,2.4359,3231.6,3230.2,3.09569]
[1722462390788,3.09518,3230.9,3230.2,3.09569]
[1722462391231,3.09518,3230.9,3230.3,3.09568]
[1722462392846,3.09496,3231.1,3230.4,3.09556]
[1722462393003,3.713933,3231.1,3230.4,3.09556]
[1722462394740,6.808943,3231.1,3230.4,3.09556]
[1722462394964,3.713933,3231.1,3230.4,3.09556]
[1722462397039,3.713933,3231.1,3230.4,6.19108]
[1722462397503,3.713933,3231.1,3230.5,3.09549]
[1722462398108,19.73,3231.0,3230.5,3.09549]
[1722462398652,19.73,3231.0,3230.4,3.09552]
[1722462398653,22.0743933,3231.0,3230.4,3.09552]
[1722462399145,22.0743933,3231.0,3230.2,3.09576]
[1722462399146,3.09511,3230.9,3230.2,3.09576]
[1722462399353,22.0743933,3231.0,3230.4,3.09557]
[1722462399555,25.1694133,3231.0,3230.4,3.09557]
[1722462399713,22.0743933,3231.0,3230.5,3.09548]
[1722462400052,22.0743933,3231.0,3230.4,3.09557]
[1722462400053,22.0743933,3231.0,3230.6,3.09538]
[1722462400354,7.47,3231.4,3231.3,3.09472]
[1722462400555,19.73,3231.5,3231.4,3.09463]
[1722462400862,7.47,3232.0,3231.9,6.1883]
[1722462401621,7.47,3232.0,3230.8,2.92254]
[1722462401821,7.47,3232.0,3231.5,3.09445]
[1722462402021,8.526388,3232.0,3231.5,3.09445]
[1722462402206,8.526388,3232.0,3231.5,3.09448]
[1722462402409,8.526388,3232.0,3231.6,3.09444]
[1722462403050,8.526388,3232.0,3231.7,3.09433]
[1722462403354,7.47,3232.0,3231.9,3.09415]
[1722462403569,7.47,3232.0,3231.9,6.1883]
[1722462404009,7.47,3232.6,3232.3,3.09369]
[1722462404209,0.747,3232.6,3232.3,3.09369]
[1722462404454,3.0932,3232.9,3232.3,3.09369]
[1722462405218,3.0,3232.8,3232.3,3.09369]
[1722462405927,6.0931,3233.0,3231.8,0.06187505]
[1722462406259,3.0,3233.0,3232.4,3.09362]
[1722462407071,6.09312,3233.0,3232.4,3.09362]
[1722462407360,1.356312,3232.9,3232.4,3.09362]
[1722462407566,1.356312,3232.9,3232.4,3.09361]
[1722462407769,1.356312,3232.9,3231.9,2.4015]
[1722462407770,7.47,3233.1,3232.6,3.09339]
[1722462408054,7.47,3233.1,3232.3,0.06187424]
[1722462408055,7.47,3233.1,3232.8,3.09323]
[1722462408262,7.47,3233.1,3233.0,3.0931]
[1722462408557,12.89014,3233.7,3233.0,3.09303]
[1722462408957,3.09253,3233.6,3232.9,3.09311]
[1722462409341,3.09253,3233.6,3233.0,3.09309]
[1722462410553,3.09263,3233.5,3233.0,3.09309]
[1722462411329,12.89014,3233.7,3233.0,3.09309]
[1722462411540,3.09258,3233.6,3233.0,3.09309]
[1722462414274,3.09258,3233.6,3233.0,3.09304]
[1722462414881,3.09258,3233.6,3233.0,6.18607]
[1722462415037,3.09258,3233.6,3233.1,3.093]
[1722462415382,10.56246,3233.7,3233.1,3.093]
[1722462415557,11.927935,3233.7,3233.1,3.093]
[1722462416444,15.020445,3233.7,3233.1,3.093]
[1722462416786,11.927935,3233.7,3233.1,3.093]
[1722462418477,3.09254,3233.6,3233.1,3.093]
[1722462418988,0.03,3233.6,3233.1,3.093]
[1722462420609,3.12253,3233.6,3233.1,3.093]
[1722462420766,4.6275755,3233.6,3233.1,3.093]
[1722462423614,0.03,3233.6,3233.1,3.09293]
[1722462423816,0.03,3233.6,3232.2,3.09382]
[1722462423817,0.03,3233.6,3233.3,6.18549]
[1722462424112,0.03,3233.6,3233.3,3.09273]
[1722462424877,0.03,3233.5,3233.4,3.09271]
[1722462426599,3.09187,3234.3,3233.4,0.618544]
[1722462426794,3.09187,3234.3,3233.7,3.09234]
[1722462426991,2.4941,3234.5,3233.7,3.09235]
[1722462426992,5.58577,3234.5,3233.7,3.09235]
[1722462427207,5.58577,3234.5,3233.9,3.09219]
[1722462427408,5.58577,3234.5,3233.9,3.09217]
[1722462430388,5.58577,3234.5,3233.9,6.18435]
[1722462430714,5.58577,3234.5,3233.9,3.09217]
[1722462431242,5.58577,3234.5,3233.9,6.18435]
[1722462431538,5.58577,3234.5,3233.9,3.09217]
[1722462434133,1.07056595,3234.4,3233.9,3.09217]
[1722462434342,5.58577,3234.5,3233.9,3.09217]
[1722462434556,1.07056244,3234.4,3233.9,3.09217]
[1722462434920,3.09178,3234.4,3233.9,3.09217]
[1722462437555,1.07056259,3234.3,3233.9,3.09217]
[1722462437708,3.09178,3234.4,3233.9,3.09217]
[1722462437908,1.07055313,3234.3,3234.0,3.09209]
[1722462438105,3.38708297,3235.0,3234.0,3.09209]
[1722462438106,3.09158,3234.6,3234.0,3.09208]
[1722462438306,1.07051633,3234.5,3234.0,3.09208]
[1722462438545,3.09158,3234.6,3234.1,3.09202]
[1722462438752,1.07047914,3234.5,3234.1,3.09202]
[1722462438930,3.09158,3234.6,3234.1,3.09202]
[1722462439153,1.07048761,3234.5,3234.1,3.09202]
[1722462439356,3.09139,3234.8,3234.2,3.09188]
[1722462439540,1.07044498,3234.7,3234.3,3.09185]
[1722462439741,3.96598297,3235.3,3234.0,3.09207]
[1722462439742,0.64398865,3235.2,3234.0,3.09207]
[1722462439958,4.16148329,3235.1,3234.3,3.0918]
[1722462440176,3.0,3235.0,3234.5,3.09166]
[1722462440385,1.07038881,3234.9,3234.5,3.09166]
[1722462440736,3.0,3235.0,3234.5,3.09166]
[1722462440967,1.2879773,3235.4,3234.7,3.09145]
[1722462440968,1.07038793,3234.9,3234.7,3.09145]
[1722462441148,3.09103,3235.2,3234.7,3.09145]
[1722462441453,1.07031908,3235.1,3234.7,3.09145]
[1722462441686,3.09103,3235.2,3234.7,3.09145]
[1722462441893,1.07031688,3235.1,3234.7,3.09145]
[1722462442050,0.64398865,3235.3,3234.5,3.09166]
[1722462442375,3.09124,3235.0,3234.3,3.09177]
[1722462442581,3.09124,3235.0,3234.4,3.09171]
[1722462443088,3.09129,3234.9,3234.4,3.09171]
[1722462444046,3.09124,3235.0,3234.1,3.09199]
[1722462444047,3.09138,3234.8,3234.1,3.09199]
[1722462444247,0.64466207,3235.1,3233.9,3.0922]
[1722462444457,3.09186,3234.3,3233.8,3.09233]
[1722462444653,3.09186,3234.3,3233.7,3.09243]
[1722462444954,3.09197,3234.2,3233.8,0.551993]
[1722462448906,3.09197,3234.2,3233.7,3.09238]
[1722462449810,3.09197,3234.2,3233.2,5.36807]
[1722462449811,0.64466207,3234.3,3233.8,0.06184164]
[1722462450105,0.64670315,3234.4,3234.0,3.09205]
[1722462450307,0.97005473,3234.6,3234.1,3.09202]
[1722462450308,0.64670315,3234.5,3234.1,3.09202]
[1722462450461,0.64670315,3234.3,3234.1,3.09202]
[1722462450663,0.97005473,3234.5,3234.1,3.09202]
[1722462450664,0.64670315,3234.4,3234.1,3.09202]
[1722462450872,0.64670315,3234.3,3234.1,3.09202]
[1722462451307,0.64670315,3234.4,3234.1,3.09202]
[1722462451460,0.64670315,3234.3,3234.1,3.09202]
[1722462451897,0.64670315,3234.3,3234.1,3.959187]
[1722462452105,0.64670315,3234.4,3234.1,3.09202]
[1722462452312,0.64670315,3234.4,3234.0,3.09209]
[1722462452667,0.64670315,3234.3,3234.0,3.09209]
[1722462452871,0.64670315,3234.3,3234.1,3.09203]
[1722462453660,0.64670315,3234.2,3234.1,3.09203]
[1722462454199,0.64670315,3234.3,3234.1,3.09203]
[1722462454610,0.64670315,3234.3,3233.8,3.09228]
[1722462454611,0.64670315,3234.2,3234.0,3.09214]
[1722462454809,0.97005473,3234.3,3234.0,3.09214]
[1722462454810,0.647372,3234.1,3234.0,3.09214]
[1722462455392,0.647372,3234.1,3233.8,3.09228]
[1722462455583,0.647372,3234.1,3233.6,3.09245]
[1722462455913,0.647372,3234.1,3233.7,0.618499]
[1722462456115,0.647372,3234.1,3233.7,3.710919]
[1722462456609,0.647372,3234.0,3233.7,3.710919]
[1722462457035,0.647372,3234.0,3233.7,3.09242]
[1722462457317,0.647372,3234.0,3233.6,3.09248]
[1722462457721,0.647372,3233.9,3233.6,3.09248]
[1722462458076,0.647372,3233.9,3233.0,2.3437]
[1722462458277,0.647372,3233.9,3232.7,0.15362553]
[1722462458278,0.647372,3233.3,3232.5,6.18702]
[1722462458477,0.647372,3233.3,3232.1,3.09391]
[1722462458478,3.09345,3232.7,3232.1,3.09391]
[1722462458712,3.30115473,3233.1,3231.6,3.09439]
[1722462458713,3.741272,3232.2,3231.6,3.09439]
[1722462458922,3.741272,3232.2,3231.1,2.63499337]
[1722462458923,0.64798269,3231.9,3231.2,3.09478]
[1722462459128,3.74234269,3231.7,3231.1,2.4804]
[1722462459281,0.64798269,3231.6,3231.2,3.652354]
[1722462460539,0.64798269,3231.6,3230.1,3.14968701]
[1722462460540,3.0951,3231.0,3229.3,2.4804]
[1722462460683,3.09484,3231.2,3230.2,3.09576]
[1722462460684,0.64736689,3230.8,3230.2,3.09576]
[1722462460883,0.64736689,3230.7,3230.3,0.309576]
[1722462461333,0.64736689,3230.9,3230.0,0.06191257]
[1722462461625,0.64736689,3230.9,3230.2,3.09576]
[1722462461828,3.74237689,3231.0,3230.2,3.09576]
[1722462461999,0.64736689,3230.9,3230.3,0.06190928]
[1722462462198,0.64736689,3231.0,3230.4,3.09552]
[1722462462401,0.64736689,3231.1,3230.5,0.31574293]
[1722462462617,3.74220689,3231.2,3230.5,3.41123293]
[1722462462944,3.74062433,3231.2,3230.5,3.41123293]
[1722462463444,3.09484,3231.2,3230.5,3.41123293]
[1722462463643,3.74044433,3231.4,3230.6,3.09535]
[1722462463849,3.09466,3231.4,3230.6,3.8140994]
[1722462464854,3.09473,3231.3,3230.6,3.8140994]
[1722462466447,3.09473,3231.3,3230.7,3.09529]
[1722462473377,3.0952,3230.9,3230.2,3.09571]
[1722462473670,3.09527,3230.8,3230.2,3.09571]
[1722462473845,3.09527,3230.8,3230.2,3.714873]
[1722462475367,3.0952,3230.9,3230.4,3.09557]
[1722462475618,3.09502,3231.0,3230.4,3.09557]
[1722462476834,3.09513,3230.9,3230.2,3.714863]
[1722462477629,7.47,3231.1,3230.2,3.714863]
[1722462477630,10.56496,3231.1,3230.2,3.714863]
[1722462477931,3.09518,3230.9,3230.2,3.09572]
[1722462478901,3.09518,3230.9,3230.2,6.19143]
[1722462479258,3.09518,3230.9,3230.2,3.09571]
[1722462479259,6.19037,3230.9,3230.2,3.09571]
[1722462479474,3.09518,3230.9,3230.2,3.09571]
[1722462479763,3.09518,3230.9,3230.3,3.09567]
[1722462479917,3.09518,3230.9,3230.3,3.714808]
[1722462480546,3.09518,3230.9,3230.3,3.09567]
[1722462481719,3.09518,3230.9,3230.3,6.19128]
[1722462482019,6.19037,3230.9,3230.3,3.09561]
[1722462482226,3.09518,3230.9,3230.3,3.09561]
[1722462483149,3.09518,3230.9,3230.3,6.19123]
[1722462483325,3.09518,3230.9,3230.3,3.714733]
[1722462483526,10.56495,3231.1,3230.5,3.09544]
[1722462485067,10.56495,3231.1,3230.5,3.09541]
[1722462487345,3.09495,3231.1,3230.5,3.09541]
[1722462487974,3.09495,3231.1,3230.3,0.619123]
[1722462488163,6.18993,3231.1,3230.5,3.09544]
[1722462488326,6.18993,3231.1,3230.3,3.09563]
[1722462488327,3.09517,3230.9,3230.3,3.09563]
[1722462488734,3.09517,3230.9,3230.1,3.0958]
[1722462488934,3.09535,3230.7,3230.2,3.09575]
[1722462489642,3.09535,3230.7,3230.0,3.09594]
[1722462489643,3.09548,3230.6,3230.0,3.09594]
[1722462489968,6.19111,3230.5,3229.9,3.09606]
[1722462490170,3.09559,3230.4,3229.9,3.09606]
[1722462490675,6.19073,3230.7,3230.1,3.09586]
[1722462490828,1.07178416,3230.6,3230.1,3.09586]
[1722462491170,3.09536,3230.7,3230.1,3.09586]
[1722462491482,3.09536,3230.7,3230.1,3.8007322]
[1722462491775,3.09536,3230.7,3230.2,3.09578]
[1722462491949,3.09536,3230.7,3230.1,3.8007322]
[1722462491950,3.09526,3230.8,3230.3,3.09567]
[1722462492148,3.0955,3230.5,3230.1,0.7049222]
[1722462492350,3.0955,3230.5,3230.0,3.09596]
[1722462498032,3.09559,3230.4,3229.9,0.857302]
[1722462499097,3.09559,3230.4,3229.9,3.953362]
[1722462499907,3.09559,3230.4,3229.9,3.09606]
[1722462500199,3.09559,3230.4,3229.7,6.19238]
[1722462500408,3.09569,3230.3,3229.7,6.19238]
[1722462500562,3.09569,3230.3,3229.8,3.09614]
[1722462502907,3.09557,3230.5,3229.8,3.09614]
[1722462503063,3.09559,3230.4,3229.8,3.09614]
[1722462503401,6.19125,3230.4,3229.8,3.09614]
[1722462503614,6.19126,3230.4,3229.8,3.09614]
[1722462503817,3.09559,3230.4,3229.8,3.09614]
[1722462504305,0.6471329,3230.1,3229.8,3.09614]
[1722462504679,0.6471329,3230.1,3229.6,3.09627]
[1722462504878,0.6471329,3230.0,3229.6,3.715537]
[1722462505261,0.6471329,3229.9,3229.6,3.715537]
[1722462505687,0.97069935,3230.1,3229.6,3.715537]
[1722462505688,0.6471329,3230.0,3229.6,3.715537]
[1722462506081,0.6471329,3230.0,3229.7,3.09623]
[1722462506262,0.6471329,3229.9,3229.7,3.09623]
[1722462506780,0.97069935,3230.0,3229.7,3.09623]
[1722462506781,0.6471329,3229.8,3229.7,3.09623]
[1722462506980,0.6471329,3229.8,3229.5,6.19277]
[1722462507207,0.6471329,3229.8,3229.6,3.09635]
[1722462507414,0.97069935,3229.9,3229.3,3.09659]
[1722462507415,0.6471329,3229.7,3229.3,6.19314]
[1722462507595,0.6471329,3229.7,3229.4,3.09654]
[1722462507915,4.06676935,3229.9,3229.3,0.619314]
[1722462507916,0.6471329,3229.6,3229.3,0.619314]
[1722462508281,0.6471329,3229.5,3229.3,3.715904]
[1722462508615,0.6471329,3229.5,3228.4,3.09745]
[1722462508616,0.84389255,3229.4,3228.1,0.97167157]
[1722462508768,0.84389255,3229.4,3227.4,4.85531271]
[1722462508769,0.64789988,3228.7,3228.3,3.0976]
[1722462508969,0.64789988,3228.7,3227.4,6.01041956]
[1722462508970,0.64789988,3228.5,3228.1,3.09773]
[1722462509198,0.64789988,3228.5,3227.4,2.91196956]
[1722462509199,0.64789988,3228.4,3227.7,3.09811]
[1722462509421,0.64789988,3228.3,3227.8,0.309811]
[1722462509613,3.09777,3228.2,3227.8,0.309811]
[1722462509809,3.09777,3228.2,3227.5,3.09836]
[1722462509810,3.0978,3228.1,3227.5,3.09836]
[1722462509968,3.0978,3228.1,3227.4,3.09844]
[1722462510170,3.24476309,3228.0,3227.4,3.09844]
[1722462510418,4.06819463,3228.0,3227.4,3.09844]
[1722462510579,0.9701967,3228.3,3227.6,3.09821]
[1722462510784,1.44167547,3228.3,3227.6,3.09821]
[1722462510986,0.47147877,3228.3,3227.6,3.16017191]
[1722462511185,0.47147877,3228.3,3227.4,3.09843]
[1722462511389,0.47147877,3228.3,3227.6,3.09818]
[1722462511611,0.47147877,3228.3,3227.8,3.09802]
[1722462511789,5.44335,3228.7,3227.7,0.06195595]
[1722462511790,3.09743,3228.5,3227.9,3.09796]
[1722462512001,2.3461,3228.7,3227.0,2.3659]
[1722462512324,0.9701967,3228.8,3228.3,3.09752]
[1722462512529,0.9701967,3229.3,3228.8,3.09706]
[1722462512680,2.4499,3229.7,3228.4,0.06194459]
[1722462512681,0.9701967,3229.8,3229.1,3.09677]
[1722462513021,0.53599423,3229.8,3229.6,3.09634]
[1722462513256,0.96795412,3230.3,3229.1,3.09676]
[1722462513420,4.06366412,3230.3,3229.6,3.0963]
[1722462513598,4.06366412,3230.3,3229.7,3.09621]
[1722462514246,4.06366412,3230.3,3229.6,3.0963]
[1722462514247,0.96795412,3230.4,3229.8,3.09616]
[1722462514491,0.96795412,3230.3,3229.8,3.09616]
[1722462514616,0.39679541,3230.2,3229.9,3.09606]
[1722462514807,3.09559,3230.4,3229.9,3.09606]
[1722462515347,4.06354412,3230.4,3229.9,3.09606]
[1722462515503,4.06354412,3230.4,3229.6,3.09632]
[1722462515504,4.06354412,3230.4,3229.7,3.09618]
[1722462515717,4.06354412,3230.4,3229.8,3.09609]
[1722462516020,3.09559,3230.4,3229.8,3.09609]
[1722462516354,4.62299496,3230.4,3229.8,3.09609]
[1722462516653,5.59094908,3230.4,3229.9,3.09606]
[1722462517245,2.49535908,3230.4,3229.9,3.09599]
[1722462517552,0.96795412,3230.4,3230.1,3.09579]
[1722462517900,8.43795412,3230.5,3230.1,3.09579]
[1722462518099,0.96795412,3230.4,3230.1,3.09579]
[1722462518529,7.47,3230.5,3230.1,3.09579]
[1722462519120,8.43795412,3230.5,3230.2,3.09576]
[1722462519322,7.47,3230.5,3230.2,3.09576]
[1722462519853,7.47,3230.5,3230.1,3.09579]
[1722462520049,0.96701162,3230.6,3230.1,3.09579]
[1722462520200,0.64459894,3230.4,3230.1,3.09579]
[1722462520401,0.64459894,3230.4,3230.1,6.19159]
[1722462520634,0.64459894,3230.5,3230.2,3.09577]
[1722462520801,0.64459894,3230.4,3230.2,3.09577]
[1722462521161,0.64459894,3230.5,3230.2,3.09577]
[1722462522641,0.64459894,3230.4,3230.2,3.09577]
[1722462523515,0.64459894,3230.4,3230.2,3.0957]
[1722462524251,0.64459894,3230.4,3230.2,6.19141]
[1722462524557,0.64459894,3230.4,3230.3,6.19136]
[1722462524741,0.64459894,3230.6,3230.5,3.09549]
[1722462525062,0.96701162,3230.8,3230.5,3.09549]
[1722462525223,0.96701162,3230.8,3230.7,3.0953]
[1722462525769,7.47,3230.9,3230.7,3.0953]
[1722462525770,8.43701162,3230.9,3230.7,3.0953]
[1722462525924,0.96701162,3230.8,3230.7,3.0953]
[1722462526405,0.96701162,3230.8,3230.7,6.809679]
[1722462526606,9.40354918,3231.4,3230.8,3.0952]
[1722462526607,0.64468052,3230.9,3230.8,3.0952]
[1722462526863,0.64468052,3231.3,3231.2,3.09482]
[1722462527155,0.64468052,3231.4,3231.3,3.09472]
[1722462527361,0.96701162,3231.6,3231.3,3.09472]
[1722462527362,0.64468052,3231.5,3231.4,3.09463]
[1722462527569,0.64468052,3231.5,3231.3,3.09472]
[1722462527570,0.64468052,3231.7,3231.5,3.09453]
[1722462527744,0.64468052,3231.7,3231.5,3.09447]
[1722462527943,0.64468052,3231.7,3231.6,3.09444]
[1722462528327,0.64468052,3231.8,3231.7,3.09434]
[1722462528540,0.64468052,3231.9,3231.7,3.09426]
[1722462528843,0.64468052,3231.9,3231.8,3.09425]
[1722462529008,0.99701162,3232.1,3231.9,3.09415]
[1722462529009,0.64468052,3232.0,3231.9,3.09415]
[1722462529450,0.64468052,3232.1,3232.0,3.09405]
[1722462529670,0.64468052,3232.2,3232.0,3.09405]
[1722462530353,3.09336,3232.8,3232.1,3.09396]
[1722462530652,0.64472582,3232.4,3232.1,3.09396]
[1722462530866,0.64472582,3232.3,3232.1,3.09396]
[1722462531015,0.64472582,3232.4,3232.1,3.09396]
[1722462531961,0.64472582,3232.5,3232.1,3.09396]
[1722462532188,0.64472582,3232.6,3232.3,3.09376]
[1722462532472,0.64472582,3232.7,3232.3,3.0937]
[1722462532678,0.64472582,3232.8,3232.3,3.09371]
[1722462532986,0.64472582,3233.5,3233.2,3.09283]
[1722462533129,0.64472582,3233.8,3233.2,3.09283]
[1722462533455,3.73692582,3234.0,3233.3,3.09279]
[1722462533666,3.73692582,3234.0,3233.4,3.0927]
[1722462533667,0.77961046,3233.9,3233.4,3.0927]
[1722462533833,3.0922,3234.0,3233.4,3.0927]
[1722462534034,3.73655582,3234.4,3233.6,3.09245]
[1722462534350,3.73655582,3234.4,3233.7,3.09239]
[1722462534562,0.77953246,3234.3,3233.7,3.09239]
[1722462534747,0.77953246,3234.3,3233.7,3.09237]
[1722462534958,6.87144246,3234.3,3233.4,3.09267]
[1722462535270,3.09195,3234.2,3233.6,3.09249]
[1722462536049,0.64472582,3234.8,3233.8,3.09227]
[1722462536333,3.0916,3234.6,3233.8,3.09226]
[1722462536531,3.09182,3234.4,3233.8,3.09226]
[1722462536845,3.09182,3234.4,3233.2,3.09284]
[1722462536846,3.09184,3234.4,3233.7,3.09241]
[1722462537060,3.09201,3234.2,3233.5,3.09255]
[1722462537259,0.309182,3234.3,3233.1,3.09297]
[1722462537459,4.05814874,3235.2,3232.8,3.09322]
[1722462537460,3.09262,3233.5,3232.8,3.09322]
[1722462537672,3.09278,3233.4,3232.7,3.09335]
[1722462537895,3.09296,3233.2,3232.5,3.09354]
[1722462538049,3.09296,3233.2,3232.3,3.09369]
[1722462538252,3.09294,3233.2,3232.5,3.09356]
[1722462538448,3.09294,3233.2,3232.5,3.09351]
[1722462538449,0.309294,3233.1,3232.5,3.09351]
[1722462538896,0.309294,3233.1,3232.5,6.187]
[1722462539190,7.47,3233.4,3232.7,3.09331]
[1722462539391,7.47,3233.4,3232.9,3.09319]
[1722462539591,7.47,3233.4,3233.0,3.09309]
[1722462540009,7.47,3233.4,3233.1,3.093]
[1722462540496,7.47,3233.4,3232.9,3.0931]
[1722462540708,1.056262,3233.3,3232.9,3.0931]
[1722462541201,1.056262,3233.3,3232.6,3.09346]
[1722462541797,3.09291,3233.2,3232.6,3.09346]
[1722462543990,3.09291,3233.2,3232.7,3.09337]
[1722462544934,1.056262,3233.3,3232.7,3.0933]
[1722462545113,1.1619022,3233.2,3232.8,3.09328]
[1722462545417,1.1619022,3233.2,3232.7,3.0933]
[1722462546594,4.2548222,3233.2,3232.7,3.0933]
[1722462548990,4.2548222,3233.2,3232.5,3.0935]
[1722462549223,4.2548222,3233.2,3232.5,6.18699]
[1722462549224,0.42548222,3233.1,3232.5,6.18699]
[1722462549530,0.42548222,3233.1,3232.6,3.09345]
[1722462553089,0.42548222,3233.1,3232.6,3.09255629]
[1722462560743,3.51849222,3233.1,3232.6,3.09255629]
[1722462561341,0.42548222,3233.1,3232.5,3.09349]
[1722462561505,3.56113044,3233.0,3232.5,3.09349]
[1722462567615,1.0709719,3232.9,3232.5,3.09349]
[1722462567819,3.56113044,3233.0,3232.5,3.09349]
[1722462568021,1.07097397,3232.9,3232.5,3.09349]
[1722462568326,3.56113044,3233.0,3232.5,3.09349]
[1722462568523,1.67470331,3232.9,3232.5,3.09349]
[1722462568831,0.60372304,3232.9,3232.5,3.09349]
[1722462569625,1.07099396,3232.8,3232.5,3.09349]
[1722462569835,3.69692304,3232.9,3232.5,3.09349]
[1722462570020,1.79680658,3232.8,3232.5,3.09349]
[1722462570217,0.72580535,3232.8,3232.5,3.09349]
[1722462570654,0.46803044,3233.0,3232.5,3.09349]
[1722462570849,1.07096487,3232.9,3232.5,3.09349]
[1722462571019,1.07096487,3232.8,3232.5,3.09349]
[1722462571227,0.46803044,3233.0,3232.5,3.09349]
[1722462571471,1.71215278,3232.9,3232.5,3.09349]
[1722462571762,1.59831203,3232.8,3232.5,3.09349]
[1722462571918,0.52732832,3232.8,3232.5,3.09349]
[1722462572559,0.64116907,3232.7,3232.5,3.09349]
[1722462573666,0.64116907,3232.6,3232.5,3.09349]
[1722462574438,0.64116907,3232.6,3232.4,3.09366]
[1722462575551,0.64116907,3232.5,3232.4,3.09366]